bitfinex-derivatives/quotes_ETHF0:USTF0_20210402
["timestamp","ask_amount","ask_price","bid_price","bid_amount"]
[1617380291854,68.49965,2060.0,2059.9,2.90695]
[1617380292254,69.46225,2060.0,2059.9,2.90695]
[1617380293054,3.86955,2060.0,2058.4,1.8139]
[1617380293254,3.86955,2060.0,1275.1,2.192596]
[1617380293255,70.2647,2059.1,2056.7,73.4222]
[1617380293454,70.2647,2059.1,2057.3,30.0]
[1617380293854,70.2647,2059.1,2059.0,2.90695]
[1617380295656,2.90695,2059.3,2059.0,2.90695]
[1617380296156,2.90695,2059.3,2059.0,4.40345]
[1617380297758,1.93885,2059.3,2059.0,4.40345]
[1617380298761,1.93885,2059.3,2057.9,1.5318]
[1617380298961,73.2706,2059.0,2057.3,30.0]
[1617380299161,73.2706,2059.0,2056.4,73.2706]
[1617380299560,73.2706,2059.0,2056.6,0.31220714]
[1617380299962,73.2706,2059.0,2058.6,2.90695]
[1617380301664,73.2706,2059.0,2058.6,2.60855]
[1617380301867,2.90695,2058.7,2058.6,4.00795]
[1617380302565,73.2706,2059.0,2058.6,4.00795]
[1617380303165,13.857,2059.2,2058.6,4.00795]
[1617380303967,13.857,2059.2,2059.1,2.90695]
[1617380304168,13.857,2059.2,2059.1,4.84655]
[1617380304769,12.8889,2059.2,2059.1,4.84655]
[1617380305169,12.8889,2059.2,2059.1,1.9396]
[1617380305369,64.9783,2059.1,2056.6,108.3611]
[1617380305768,64.9783,2059.1,2057.5,0.31557357]
[1617380305969,64.9783,2059.1,2058.5,2.90695]
[1617380306169,64.9783,2059.1,2058.5,3.89005]
[1617380306571,64.9783,2059.1,2058.5,2.90695]
[1617380307771,64.9783,2059.1,2058.5,2.85025]
[1617380307972,2.90695,2058.6,2058.5,2.79355]
[1617380310076,2.90695,2058.6,2058.5,2.07125]
[1617380311176,0.9813,2058.8,2058.5,2.07125]
[1617380311378,64.9783,2059.1,2058.5,2.07125]
[1617380311781,64.0102,2059.1,2058.5,2.07125]
[1617380311980,2.90695,2058.6,2058.5,2.07125]
[1617380312180,64.0102,2059.1,2058.5,2.07125]
[1617380312880,94.0102,2059.1,2057.7,0.9635]
[1617380313081,94.0102,2059.1,2057.0,0.9671]
[1617380313082,31.8098,2059.1,2056.0,0.9706]
[1617380313281,74.305,2057.6,2055.0,30.0]
[1617380313883,77.21195,2057.6,2057.5,2.90695]
[1617380315181,77.21195,2057.6,2057.5,1.41445]
[1617380315983,78.19195,2057.6,2057.5,1.41445]
[1617380316681,78.19195,2057.6,2055.5,0.9852]
[1617380317082,78.19195,2057.6,2055.6,0.31430126]
[1617380317883,75.285,2057.6,2057.2,2.90695]
[1617380318284,73.342,2057.6,2057.2,2.90695]
[1617380318785,72.3739,2057.6,2057.2,2.90695]
[1617380319195,102.3739,2057.6,2057.2,2.90695]
[1617380320088,2.90695,2057.3,2057.2,2.90695]
[1617380321087,32.90695,2057.3,2055.8,0.9832]
[1617380321287,73.0281,2057.2,2054.5,30.0]
[1617380321488,30.0,2057.1,2054.5,30.0]
[1617380321889,30.0,2057.1,2054.6,0.31275077]
[1617380322088,30.0,2057.1,2055.6,2.90695]
[1617380322289,72.7267,2057.0,2055.6,2.90695]
[1617380322490,30.0,2056.9,2055.6,2.90695]
[1617380322690,31.4087,2056.9,2055.6,2.90695]
[1617380323992,2.90695,2055.7,2055.6,2.90695]
[1617380324418,59.5667,2056.0,2055.6,2.90695]
[1617380324799,0.9834,2057.0,2055.6,2.90695]
[1617380325807,0.0153,2057.0,2055.6,2.90695]
[1617380325997,0.0153,2057.0,2056.3,2.90695]
[1617380326197,72.7328,2057.3,2056.3,2.90695]
[1617380327696,72.7328,2057.3,2055.7,1.357]
[1617380328898,72.7328,2057.3,2054.8,30.0]
[1617380329096,74.7328,2057.3,2054.8,30.0]
[1617380329596,74.7152,2056.0,2054.1,30.9621]
[1617380329996,74.7152,2056.0,2055.9,2.90695]
[1617380331997,77.62215,2056.0,2055.9,2.90695]
[1617380332498,77.62215,2056.0,2054.1,30.9621]
[1617380332898,76.65405,2056.0,2054.1,30.9621]
[1617380333100,76.65405,2056.0,2054.2,0.30942391]
[1617380334099,76.65405,2056.0,2055.9,2.90695]
[1617380340306,2.90695,2056.0,2055.9,2.90695]
[1617380341905,1.93615,2056.0,2055.9,2.90695]
[1617380343210,73.3881,2056.3,2055.9,2.90695]
[1617380343410,72.1123,2057.3,2055.9,2.90695]
[1617380343411,13.0858,2057.5,2055.9,2.90695]
[1617380343610,54.6028,2057.2,2055.9,2.90695]
[1617380344211,54.6028,2057.2,2056.4,2.90695]
[1617380346120,2.90695,2056.5,2056.4,2.90695]
[1617380348316,54.6028,2057.2,2056.4,2.90695]
[1617380348916,53.632,2057.2,2056.4,2.90695]
[1617380349317,53.632,2057.2,2056.4,32.90695]
[1617380350118,53.632,2057.2,2057.0,2.90695]
[1617380352221,2.90695,2057.1,2057.0,2.90695]
[1617380352621,2.90695,2057.1,2057.0,3.87575]
[1617380353222,53.632,2057.2,2057.0,2.90695]
[1617380353422,30.0,2059.1,2057.0,34.70735]
[1617380353623,59.4627,2058.6,2057.0,34.70735]
[1617380354224,59.4627,2058.6,2058.2,2.90695]
[1617380354424,59.4627,2058.6,2058.2,4.46865]
[1617380355023,0.9683,2059.4,2058.2,4.46865]
[1617380355426,61.8834,2059.3,2058.2,4.46865]
[1617380355825,60.9126,2059.3,2058.2,4.46865]
[1617380356226,60.9126,2059.3,2058.8,2.90695]
[1617380358229,2.90695,2058.9,2058.8,2.90695]
[1617380359432,2.90695,2058.9,2057.5,30.0]
[1617380360231,62.9221,2059.3,2058.4,2.90695]
[1617380360632,2.0095,2059.3,2056.2,30.0]
[1617380360831,71.9714,2058.1,2056.2,30.0]
[1617380361032,74.6354,2058.1,2056.2,30.0]
[1617380361231,74.6354,2058.1,2056.3,0.31247626]
[1617380361432,74.6354,2058.1,2056.2,30.0]
[1617380362232,74.6354,2058.1,2057.0,2.90695]
[1617380362432,74.6354,2058.1,2056.2,30.0]
[1617380362833,73.6646,2058.1,2056.2,30.0]
[1617380363135,2.0,2058.0,2056.2,30.0]
[1617380363732,2.0,2058.0,2056.3,30.0]
[1617380364332,2.0,2058.0,2056.8,2.90695]
[1617380364832,2.0,2058.0,2056.3,30.0]
[1617380365032,73.6646,2058.1,2056.3,30.0]
[1617380366233,73.6646,2058.1,2056.6,2.90695]
[1617380368137,105.6646,2058.1,2055.0,30.0]
[1617380368339,105.6646,2058.1,2056.1,2.90695]
[1617380369940,72.6938,2058.1,2056.1,2.90695]
[1617380370341,2.0,2058.0,2056.6,2.90695]
[1617380372042,32.0,2057.9,2056.6,2.90695]
[1617380372244,2.90695,2056.7,2056.1,2.90695]
[1617380372443,2.90695,2056.7,2054.5,0.9872]
[1617380372444,79.042,2056.6,2055.1,30.0]
[1617380372644,79.042,2056.6,2055.1,30.3139947]
[1617380372844,79.042,2056.6,2055.2,0.31400034]
[1617380373644,79.042,2056.6,2055.1,30.0]
[1617380374344,79.042,2056.6,2055.7,2.90695]
[1617380376249,2.90695,2055.8,2055.7,2.90695]
[1617380376449,79.042,2056.6,2055.7,2.90695]
[1617380376650,79.042,2056.6,2055.7,32.90695]
[1617380376850,78.0712,2056.6,2055.7,32.90695]
[1617380378054,78.0712,2056.6,2055.7,2.90695]
[1617380378453,4.37035,2055.8,2055.7,2.90695]
[1617380379154,4.37035,2055.8,2055.0,30.0]
[1617380379555,4.37035,2055.8,2055.1,0.31402732]
[1617380380155,4.37035,2055.8,2055.0,30.0]
[1617380380356,1.4634,2055.8,2055.5,2.90695]
[1617380380555,2.4307,2055.8,2055.5,2.90695]
[1617380382057,2.4307,2055.8,2054.1,32.571]
[1617380382259,56.7112,2055.0,2054.1,30.0]
[1617380382456,56.7112,2055.0,2054.8,2.90695]
[1617380383858,55.7404,2055.0,2054.8,2.90695]
[1617380384358,2.90695,2054.9,2054.8,2.90695]
[1617380386761,2.90695,2054.9,2054.1,30.0]
[1617380387163,2.90695,2054.9,2053.4,30.0]
[1617380387366,30.0,2054.8,2052.2,0.977]
[1617380387563,30.0,2054.8,2052.1,5.07826738]
[1617380387763,30.0,2054.8,2054.0,102.0595]
[1617380387964,32.0,2054.8,2054.0,96.4475]
[1617380388164,32.0,2054.8,2054.0,93.0267]
[1617380388363,32.0,2054.8,2054.0,91.6021]
[1617380388364,2.90695,2054.1,2054.0,91.6021]
[1617380388564,4.69675,2054.1,2054.0,91.2295]
[1617380388764,4.69675,2054.1,2054.0,90.0257]
[1617380388973,4.69675,2054.1,2054.0,86.0797]
[1617380389163,4.69675,2054.1,2054.0,83.6518]
[1617380389565,5.68455,2054.1,2054.0,83.6518]
[1617380390169,5.68455,2054.1,2054.0,81.0957]
[1617380390377,5.68455,2054.1,2054.0,58.9068]
[1617380390568,5.68455,2054.1,2054.0,50.5386]
[1617380390772,7.68455,2054.1,2054.0,25.0713]
[1617380390966,4.71375,2054.1,2054.0,23.6366]
[1617380391171,4.71375,2054.1,2054.0,21.1844]
[1617380391369,4.71375,2054.1,2052.6,2.90695]
[1617380391575,57.5526,2053.0,2052.6,2.90695]
[1617380391768,59.5449,2053.0,2052.6,2.90695]
[1617380392575,77.5115,2053.6,2052.6,2.90695]
[1617380392769,77.5115,2053.6,2053.4,0.02]
[1617380392969,77.5115,2053.6,2052.6,2.90695]
[1617380394377,77.5115,2053.6,2053.5,2.90695]
[1617380394581,0.9814,2056.0,2053.5,2.90695]
[1617380394775,79.8041,2054.4,2053.5,2.90695]
[1617380394993,80.7765,2054.4,2053.5,2.90695]
[1617380395406,79.8041,2054.4,2053.5,2.90695]
[1617380395971,0.9658,2055.2,2053.6,70.6432]
[1617380396583,74.8469,2055.8,2054.5,4.77315]
[1617380397786,74.8469,2055.8,2054.5,2.90695]
[1617380397976,73.8761,2055.8,2054.5,2.90695]
[1617380398477,2.90695,2054.6,2054.5,2.90695]
[1617380399979,2.90695,2054.6,2053.5,1.7599]
[1617380400179,83.25985,2054.6,2052.9,30.0]
[1617380400578,80.3529,2054.6,2053.9,2.90695]
[1617380401679,81.5822,2054.6,2052.4,66.7986]
[1617380402079,1.2293,2054.6,2052.1,30.0]
[1617380402280,63.1695,2053.7,2052.1,30.0]
[1617380402480,64.1533,2053.7,2053.3,2.90695]
[1617380402680,63.1695,2053.7,2053.3,2.90695]
[1617380402882,0.9825,2054.6,2053.3,2.90695]
[1617380403080,63.1172,2054.2,2053.3,2.90695]
[1617380404480,63.1172,2054.2,2053.6,2.90695]
[1617380404882,62.1464,2054.2,2053.6,2.90695]
[1617380405487,62.1464,2054.2,2052.6,1.8646]
[1617380406484,62.1464,2054.2,2053.2,2.90695]
[1617380408285,0.978,2054.5,2053.2,2.90695]
[1617380408487,2.90695,2053.3,2053.2,2.90695]
[1617380408687,2.90695,2053.3,2051.2,30.0]
[1617380408888,3.87855,2053.3,2052.0,13.35]
[1617380409088,63.4714,2052.6,2052.0,13.35]
[1617380410692,63.4714,2052.6,2052.4,2.90695]
[1617380411295,63.4714,2052.6,2051.1,12.403411]
[1617380411493,63.4714,2052.6,2051.1,31.2475]
[1617380412094,63.4714,2052.6,2051.1,30.0]
[1617380412695,66.37835,2052.6,2052.4,2.90695]
[1617380413496,63.4714,2052.6,2052.4,2.90695]
[1617380414098,62.4997,2052.6,2052.4,2.90695]
[1617380414897,2.90695,2052.7,2052.4,2.90695]
[1617380415297,57.4178,2053.3,2052.4,2.90695]
[1617380416103,58.4049,2053.3,2052.4,2.90695]
[1617380416601,58.4049,2053.3,2053.1,2.90695]
[1617380417002,58.4049,2053.3,2052.6,1.3829]
[1617380417202,57.4178,2053.3,2052.6,1.3829]
[1617380418605,57.4178,2053.3,2053.0,2.90695]
[1617380419117,57.4178,2053.3,2052.1,1.3161]
[1617380419304,57.4178,2053.3,2051.6,0.9874]
[1617380419504,57.4178,2053.3,2051.0,3.5343]
[1617380420604,58.379,2053.3,2052.9,2.90695]
[1617380421005,57.4073,2053.3,2052.9,2.90695]
[1617380421406,56.4461,2053.3,2052.9,2.90695]
[1617380422606,2.90695,2053.0,2052.9,2.90695]
[1617380424508,2.90695,2053.0,2051.9,1.4537]
[1617380424708,2.90695,2052.4,2052.2,2.90695]
[1617380426710,2.90695,2052.4,2052.2,3.87865]
[1617380426910,2.90695,2052.4,2052.2,2.90695]
[1617380428109,1.93525,2052.4,2052.2,2.90695]
[1617380429511,1.93525,2052.4,2050.5,30.0]
[1617380429711,1.93525,2052.4,2051.0,2.571]
[1617380430112,72.5407,2051.2,2051.0,2.571]
[1617380430614,0.9771,2051.5,2051.0,2.571]
[1617380430812,2.90695,2051.1,2050.7,2.90695]
[1617380432413,73.5352,2051.0,2050.7,2.90695]
[1617380434717,2.90695,2050.8,2050.7,2.90695]
[1617380435118,3.45774958,2050.8,2050.7,2.90695]
[1617380436520,3.45774958,2050.8,2050.0,0.02]
[1617380436719,2.90695,2050.1,2050.0,0.02]
[1617380437117,4.86825,2050.1,2050.0,0.02]
[1617380437920,59.2436,2050.0,2046.7,55.9988]
[1617380438131,36.86825,2050.1,2047.0,0.9677]
[1617380438321,36.86825,2050.1,2046.5,13.973]
[1617380438322,2.0,2048.1,2046.5,13.973]
[1617380438520,60.7491,2048.2,2047.1,0.31260417]
[1617380438723,60.7491,2048.2,2047.4,2.90695]
[1617380439521,1.4656,2048.2,2047.4,2.90695]
[1617380440121,69.7662,2048.6,2047.4,2.90695]
[1617380440320,0.9661,2049.7,2047.4,2.90695]
[1617380440321,75.6886,2049.7,2047.4,2.90695]
[1617380440521,74.7225,2049.7,2047.4,2.90695]
[1617380440721,74.7225,2049.7,2049.1,2.90695]
[1617380442123,30.0,2051.2,2049.1,2.90695]
[1617380442329,30.0,2051.2,2049.1,4.33485]
[1617380442922,2.90695,2050.5,2049.1,1.4279]
[1617380443523,2.90695,2050.5,2048.4,1.8955]
[1617380444723,2.90695,2050.5,2048.0,0.9652]
[1617380444924,81.937,2050.6,2049.5,2.90695]
[1617380446125,79.9352,2050.6,2049.5,2.90695]
[1617380446929,2.90695,2049.6,2048.5,13.0394]
[1617380448333,79.9352,2050.6,2048.5,14.7356]
[1617380448934,2.90695,2050.9,2050.5,2.90695]
[1617380449136,1.93525,2050.9,2050.5,1.4226]
[1617380450935,57.5699,2051.5,2050.7,2.90695]
[1617380451335,2.0,2052.3,2050.5,1.4226]
[1617380452134,59.4529,2052.7,2050.5,1.4226]
[1617380452935,59.4529,2052.7,2051.0,2.90695]
[1617380453134,59.4529,2052.7,2050.5,1.4226]
[1617380454134,59.4529,2052.7,2049.8,14.0488]
[1617380454936,60.4389,2052.7,2049.8,14.0488]
[1617380455135,30.986,2052.7,2049.8,14.0488]
[1617380455335,65.4769,2051.5,2049.8,14.0488]
[1617380455535,67.2911,2051.5,2049.8,14.0488]
[1617380455935,2.0,2051.4,2049.8,14.0488]
[1617380456134,66.3194,2051.5,2049.8,14.0488]
[1617380456936,66.3194,2051.5,2050.2,2.90695]
[1617380457339,66.3194,2051.5,2049.8,14.0488]
[1617380457937,1.8142,2051.5,2048.5,1.8347]
[1617380458138,55.3615,2050.2,2048.0,13.0338]
[1617380458537,57.2375,2050.2,2048.0,13.0338]
[1617380458737,57.2375,2050.2,2048.1,13.2314]
[1617380458938,57.2375,2050.2,2048.6,2.90695]
[1617380458939,2.90695,2048.7,2048.6,2.90695]
[1617380459539,1.9391,2049.0,2048.6,2.90695]
[1617380459938,58.3693,2048.7,2048.6,2.90695]
[1617380460140,1.3267,2049.7,2048.6,2.90695]
[1617380460339,58.2998,2050.2,2048.6,2.90695]
[1617380460540,58.2998,2050.2,2048.6,4.72645]
[1617380460940,58.2998,2050.2,2049.7,2.90695]
[1617380461141,58.2998,2050.2,2049.7,4.49305]
[1617380461340,58.2998,2050.2,2049.7,1.5861]
[1617380462142,58.2998,2050.2,2048.1,13.2314]
[1617380462943,58.2998,2050.2,2050.1,2.90695]
[1617380463144,1.93525,2050.3,2050.1,4.72465]
[1617380463343,65.9422,2051.3,2050.1,4.72465]
[1617380464947,65.9422,2051.3,2050.9,2.90695]
[1617380465352,65.9422,2051.3,2050.9,4.46445]
[1617380466949,65.9422,2051.3,2051.2,2.90695]
[1617380469053,68.84915,2051.3,2051.2,4.15965]
[1617380470255,67.87745,2051.3,2051.2,2.90695]
[1617380471054,67.87745,2051.3,2049.5,1.7893]
[1617380471255,69.14305,2051.3,2049.2,30.0]
[1617380471455,4.17255,2051.3,2049.4,30.0]
[1617380471655,66.1342,2050.6,2049.4,30.0]
[1617380471856,68.0838,2050.6,2049.4,30.0]
[1617380472856,66.1342,2050.6,2049.4,30.0]
[1617380473059,66.1342,2050.6,2050.5,2.90695]
[1617380475066,69.04115,2050.6,2050.5,2.90695]
[1617380475668,2.90695,2050.6,2050.5,2.90695]
[1617380476467,2.90695,2050.6,2049.3,13.2279]
[1617380477067,66.5231,2051.1,2050.0,2.90695]
[1617380478281,66.5231,2051.1,2049.3,13.2279]
[1617380478869,2.0,2051.0,2049.3,13.2279]
[1617380479069,2.0,2051.0,2049.8,2.90695]
[1617380479271,69.5051,2050.3,2049.8,2.90695]
[1617380479469,71.3068,2050.3,2049.3,13.2279]
[1617380480373,71.3068,2050.3,2050.0,0.02]
[1617380480573,1.8017,2050.3,2050.0,0.02]
[1617380480974,2.90695,2050.1,2050.0,0.02]
[1617380491286,4.90695,2050.1,2050.0,0.02]
[1617380493888,36.55315,2050.1,2050.0,0.02]
[1617380495187,36.55315,2050.1,2047.8,2.90695]
[1617380495588,36.55315,2050.1,2049.6,0.02]
[1617380495989,36.55315,2050.1,2047.8,16.95425]
[1617380496188,2.0,2049.5,2047.8,16.95425]
[1617380496391,30.0,2049.4,2047.8,16.95425]
[1617380496589,2.0,2049.3,2047.8,16.95425]
[1617380496991,32.0,2049.3,2047.8,16.95425]
[1617380497191,2.90695,2047.9,2047.8,16.95425]
[1617380499697,2.88695,2047.9,2047.8,16.95425]
[1617380502399,2.88695,2047.9,2047.8,14.0473]
[1617380503299,2.88695,2047.9,2047.8,16.95425]
[1617380504299,1.50475,2047.9,2047.8,16.95425]
[1617380504699,73.1216,2048.4,2047.8,16.95425]
[1617380504903,0.9791,2048.7,2047.8,16.95425]
[1617380505308,0.9791,2048.7,2048.3,2.90695]
[1617380506200,64.5764,2049.5,2048.3,2.90695]
[1617380507202,63.6029,2049.5,2049.1,2.90695]
[1617380507404,0.9804,2050.3,2049.1,4.22895]
[1617380507604,61.0375,2050.5,2049.1,4.22895]
[1617380507805,30.0,2050.4,2049.1,4.22895]
[1617380508205,2.0,2050.3,2049.1,4.22895]
[1617380508405,30.0,2050.4,2049.1,2.90695]
[1617380509208,2.90695,2049.3,2049.1,2.90695]
[1617380512710,0.9771,2050.3,2049.1,4.85625]
[1617380513307,0.9771,2050.3,2050.1,2.90695]
[1617380514309,0.0036,2050.3,2050.1,2.90695]
[1617380515311,2.90695,2050.2,2050.1,2.90695]
[1617380515713,77.6175,2050.6,2050.1,2.90695]
[1617380515913,2.43953921,2051.6,2050.1,2.90695]
[1617380516115,2.43953921,2051.6,2050.1,4.90695]
[1617380516714,75.8514,2051.7,2050.1,4.90695]
[1617380517115,77.8514,2051.7,2050.1,4.90695]
[1617380517315,77.8514,2051.7,2050.9,2.90695]
[1617380518117,75.8514,2051.7,2050.9,2.90695]
[1617380518317,75.8514,2051.7,2050.9,4.54075]
[1617380518820,0.9714,2051.6,2049.4,64.04525]
[1617380519021,77.8514,2051.7,2049.4,64.04525]
[1617380519221,75.8514,2051.7,2051.0,2.90695]
[1617380519520,75.8514,2051.7,2049.9,1.5061]
[1617380520121,76.8336,2051.7,2049.9,1.5061]
[1617380520319,2.0,2051.6,2049.9,1.5061]
[1617380520721,76.8336,2051.7,2049.9,1.5061]
[1617380521227,75.8601,2051.7,2051.1,2.90695]
[1617380523425,2.90695,2051.2,2051.1,2.90695]
[1617380525528,0.9646,2051.4,2051.1,2.90695]
[1617380526337,74.8779,2051.7,2051.1,4.41825]
[1617380527429,74.8779,2051.7,2051.6,2.90695]
[1617380527629,2.90695,2052.0,2051.6,2.90695]
[1617380528029,0.01370329,2052.6,2051.6,4.27755]
[1617380528230,70.68470329,2052.7,2051.6,4.27755]
[1617380529333,70.68470329,2052.7,2052.6,2.90695]
[1617380529529,0.9629,2052.8,2052.6,2.90695]
[1617380529731,2.90695,2052.9,2052.6,2.90695]
[1617380531334,0.9646,2053.4,2052.6,2.90695]
[1617380531534,68.6665035,2053.7,2053.3,2.90695]
[1617380531535,2.90695,2053.6,2053.3,2.90695]
[1617380534840,69.1032,2053.3,2051.9,14.1195]
[1617380535039,70.0843,2053.3,2051.9,14.1195]
[1617380535239,69.1108,2053.3,2051.9,14.1195]
[1617380535640,69.1108,2053.3,2052.7,2.90695]
[1617380535841,0.9811,2053.3,2052.7,2.90695]
[1617380537142,0.01369824,2053.8,2052.7,2.90695]
[1617380537545,2.90695,2052.8,2052.7,2.90695]
[1617380537942,0.0136977,2053.8,2052.7,2.90695]
[1617380538448,0.99480508,2054.0,2052.7,2.90695]
[1617380538646,0.01370508,2054.0,2052.7,2.90695]
[1617380539245,64.58970913,2054.1,2052.7,2.90695]
[1617380539644,64.58970913,2054.1,2053.6,2.90695]
[1617380540246,64.58970913,2054.1,2052.0,55.1307]
[1617380540646,64.576,2054.1,2052.0,55.1307]
[1617380541546,64.576,2054.1,2053.5,2.90695]
[1617380542250,63.6025,2054.1,2053.5,2.90695]
[1617380543651,2.90695,2053.6,2053.5,2.90695]
[1617380543849,3.88845,2053.6,2053.5,2.90695]
[1617380544251,2.90695,2053.6,2053.5,2.90695]
[1617380546250,63.6025,2054.1,2053.5,2.90695]
[1617380546452,0.9596,2054.4,2053.5,2.90695]
[1617380547653,0.9596,2054.4,2054.0,2.90695]
[1617380549055,76.4142,2054.0,2051.9,14.1195]
[1617380549256,75.4407,2054.0,2051.9,14.1195]
[1617380549656,75.4407,2054.0,2053.5,2.90695]
[1617380551764,75.4407,2054.0,2053.9,2.90695]
[1617380552162,75.4407,2054.0,2053.9,2.84355]
[1617380552361,75.4407,2054.0,2052.5,1.371]
[1617380553757,75.4407,2054.0,2053.8,2.90695]
[1617380553957,0.9596,2054.4,2053.8,2.90695]
[1617380554159,61.8881,2054.4,2053.8,2.90695]
[1617380555759,2.90695,2053.9,2053.8,2.90695]
[1617380555960,0.9796,2053.9,2053.8,2.84685]
[1617380556361,0.0061,2053.9,2053.8,2.84685]
[1617380558962,0.0061,2053.9,2052.7,13.7641]
[1617380559563,72.6906,2053.6,2052.7,13.7641]
[1617380559764,72.6906,2053.6,2053.5,2.90695]
[1617380560965,0.0061,2053.9,2053.5,2.90695]
[1617380561765,0.0061,2053.9,2053.8,2.90695]
[1617380563275,1.93955,2054.0,2053.8,2.90695]
[1617380564769,1.93955,2054.0,2052.7,13.7641]
[1617380565171,80.3142,2053.7,2052.7,13.7641]
[1617380565371,81.2824,2053.7,2052.7,13.7641]
[1617380565872,81.2824,2053.7,2053.6,2.90695]
[1617380566674,111.2824,2053.7,2051.9,14.1195]
[1617380566873,30.0,2053.5,2051.9,14.1195]
[1617380567073,67.8986,2052.8,2051.9,14.1195]
[1617380567273,70.2656,2052.8,2051.5,13.3138]
[1617380567873,100.2656,2052.8,2050.6,14.073]
[1617380568876,102.2656,2052.8,2050.6,14.073]
[1617380569777,2.90695,2052.5,2051.9,2.90695]
[1617380569978,32.90695,2052.5,2051.9,2.90695]
[1617380570389,31.93345,2052.5,2051.9,2.90695]
[1617380570583,1.93345,2052.5,2051.9,2.90695]
[1617380570980,2.89735,2052.5,2051.9,2.90695]
[1617380571377,1.93345,2052.5,2051.9,2.90695]
[1617380571779,1.93345,2052.5,2052.4,2.90695]
[1617380572384,1.93345,2052.5,2052.4,4.89875]
[1617380572581,68.8686,2052.8,2052.4,4.89875]
[1617380572877,30.0,2053.6,2052.4,4.89875]
[1617380572878,56.2245,2053.6,2052.4,4.89875]
[1617380573786,56.2245,2053.6,2053.5,2.90695]
[1617380573981,32.90695,2054.5,2053.5,2.90695]
[1617380573982,32.90695,2054.5,2053.5,4.72165]
[1617380574178,90.20705,2054.5,2053.5,4.72165]
[1617380575380,60.20705,2054.5,2053.5,4.72165]
[1617380575780,60.20705,2054.5,2054.3,2.90695]
[1617380575984,60.20705,2054.5,2054.3,4.57975]
[1617380577181,57.3001,2054.5,2054.3,4.57975]
[1617380580887,58.2816,2054.5,2054.3,4.57975]
[1617380581090,58.2816,2054.5,2054.3,2.90695]
[1617380582289,57.3087,2054.5,2054.3,2.90695]
[1617380583192,0.9815,2054.5,2054.3,2.90695]
[1617380583393,1.9464,2055.2,2054.3,2.90695]
[1617380583595,71.0815,2055.4,2054.3,2.90695]
[1617380583794,71.0815,2055.4,2055.3,2.90695]
[1617380583994,2.90695,2055.5,2055.3,2.90695]
[1617380584596,2.90695,2055.5,2055.3,4.66025]
[1617380585495,30.0,2056.1,2055.3,3.92505]
[1617380585896,30.0,2056.1,2056.0,2.90695]
[1617380586097,30.0,2056.1,2056.0,4.29465]
[1617380586295,0.9815,2056.4,2056.0,4.29465]
[1617380586695,1.953,2056.4,2056.0,4.29465]
[1617380587896,1.953,2056.4,2056.3,2.90695]
[1617380588797,30.0,2056.6,2056.3,2.90695]
[1617380588999,57.3138,2057.0,2056.3,2.90695]
[1617380589198,87.3138,2057.0,2056.3,2.90695]
[1617380589405,56.3409,2057.0,2056.3,2.90695]
[1617380589801,57.303,2057.0,2056.9,2.90695]
[1617380590203,57.303,2057.0,2056.9,4.31335]
[1617380592303,0.9704,2057.0,2056.9,4.31335]
[1617380594007,0.9704,2057.0,2056.9,1.4064]
[1617380594206,0.9704,2057.0,2056.0,1.3877]
[1617380594407,0.9704,2057.0,2055.2,66.6997]
[1617380596008,0.9704,2057.0,2056.9,2.90695]
[1617380596209,0.9704,2057.0,2056.9,4.47965]
[1617380596413,2.90445,2057.2,2056.9,4.47965]
[1617380597412,3.88315,2057.2,2056.9,4.47965]
[1617380598012,2.90445,2057.2,2056.9,4.47965]
[1617380598411,2.90445,2057.2,2056.9,2.90695]
[1617380599024,3.87705,2057.2,2056.9,2.90695]
[1617380600415,2.90445,2057.2,2056.9,2.90695]
[1617380603323,1.93155,2057.2,2056.9,2.90695]
[1617380605728,0.9655,2057.6,2056.9,2.90695]
[1617380605929,0.9655,2057.6,2057.5,2.90695]
[1617380606330,0.9655,2057.6,2057.5,2.45325]
[1617380606529,1.9309,2057.6,2057.5,2.45325]
[1617380608734,1.9309,2057.6,2057.5,2.35805]
[1617380609933,1.9209,2057.6,2057.5,2.35805]
[1617380610334,0.948,2057.6,2057.5,2.35805]
[1617380617335,60.2467,2057.7,2057.5,2.35805]
[1617380617537,61.2226,2057.7,2057.5,2.35805]
[1617380618836,13.0,2057.6,2057.5,2.35805]
[1617380619036,13.969,2057.6,2057.5,2.35805]
[1617380621337,13.0,2057.6,2057.5,2.35805]
[1617380624338,12.0271,2057.6,2057.5,2.35805]
[1617380629147,12.0271,2057.6,2057.5,1.40805]
[1617380631451,12.0282,2057.6,2057.5,1.40805]
[1617380631852,11.0542,2057.6,2057.5,1.40805]
[1617380634761,12.029,2057.6,2057.5,1.40805]
[1617380634961,11.0542,2057.6,2057.5,1.40805]
[1617380638367,10.0813,2057.6,2057.5,1.40805]
[1617380645371,10.0899,2057.6,2057.5,1.40805]
[1617380645571,0.9606,2058.2,2057.5,3.18585]
[1617380645971,30.0,2060.0,2058.0,74.1585]
[1617380646372,30.0,2060.0,2059.8,2.90695]
[1617380648172,0.9771,2060.1,2059.8,2.90695]
[1617380648373,2.90695,2059.9,2059.8,2.90695]
[1617380649376,3.87545,2059.9,2059.8,2.90695]